[Event "Early-Titled-Tuesday-Blitz-November-28-2023"]
[Site "Chess.com"]
[Date "2023.11.28"]
[Round "2"]
[White "LUISMIGUELOV"]
[Black "cthulhuuu"]
[Result "1/2-1/2"]
[WhiteElo "2207"]
[BlackElo "2466"]
[TimeControl "180+1"]
[EndTime "8:19:37 PST"]
[Termination "Game drawn - insufficient material"]

1. d4 {[%clk 0:02:58.6]} 1... Nf6 {[%clk 0:02:59.9]} 2. c3 {[%clk 0:02:57.7]}
2... g6 {[%clk 0:02:59.8]} 3. Bg5 {[%clk 0:02:56.6]} 3... Bg7 {[%clk 0:03:00.2]}
4. Nd2 {[%clk 0:02:53.6]} 4... d5 {[%clk 0:03:00.4]} 5. e3 {[%clk 0:02:52.7]}
5... O-O {[%clk 0:03:00.6]} 6. Bd3 {[%clk 0:02:52]} 6... c5 {[%clk 0:03:00.5]}
7. Ngf3 {[%clk 0:02:50.3]} 7... Nc6 {[%clk 0:03:00.1]} 8. O-O {[%clk 0:02:49.4]}
8... Bg4 {[%clk 0:02:54.3]} 9. h3 {[%clk 0:02:48.9]} 9... Bxf3 {[%clk
0:02:50.5]} 10. Nxf3 {[%clk 0:02:48.4]} 10... cxd4 {[%clk 0:02:47.6]} 11. exd4
{[%clk 0:02:47.5]} 11... Qb6 {[%clk 0:02:45.9]} 12. Qe2 {[%clk 0:02:43.5]} 12...
Rfe8 {[%clk 0:02:43.2]} 13. Rab1 {[%clk 0:02:39.4]} 13... Rac8 {[%clk
0:02:01.3]} 14. Rfe1 {[%clk 0:02:38.6]} 14... Na5 {[%clk 0:01:52.7]} 15. Ne5
{[%clk 0:02:36.4]} 15... Nc6 {[%clk 0:01:44.8]} 16. Qf3 {[%clk 0:02:23.6]} 16...
Nxe5 {[%clk 0:01:10.8]} 17. dxe5 {[%clk 0:01:59.2]} 17... Nd7 {[%clk 0:01:07.8]}
18. Qxd5 {[%clk 0:01:56.6]} 18... Nxe5 {[%clk 0:01:01.2]} 19. Be4 {[%clk
0:01:49.9]} 19... e6 {[%clk 0:00:37.9]} 20. Qxb7 {[%clk 0:01:46.2]} 20... Qxb7
{[%clk 0:00:11.9]} 21. Bxb7 {[%clk 0:01:45.7]} 21... Rb8 {[%clk 0:00:12.7]} 22.
Be4 {[%clk 0:01:42.1]} 22... f5 {[%clk 0:00:12]} 23. Bc2 {[%clk 0:01:29.7]}
23... Nc4 {[%clk 0:00:10]} 24. Bb3 {[%clk 0:01:27.4]} 24... Rbc8 {[%clk
0:00:09.7]} 25. Bxc4 {[%clk 0:01:25.4]} 25... Rxc4 {[%clk 0:00:09.5]} 26. Re2
{[%clk 0:01:23.3]} 26... Kf7 {[%clk 0:00:09.7]} 27. Rd1 {[%clk 0:01:21.6]} 27...
Rc6 {[%clk 0:00:10.2]} 28. Red2 {[%clk 0:01:19.3]} 28... h6 {[%clk 0:00:08.5]}
29. Be3 {[%clk 0:01:15.7]} 29... Re7 {[%clk 0:00:08.3]} 30. Rd7 {[%clk
0:01:14.3]} 30... a6 {[%clk 0:00:07.2]} 31. Rxe7+ {[%clk 0:01:11]} 31... Kxe7
{[%clk 0:00:08.1]} 32. Kf1 {[%clk 0:01:08.1]} 32... e5 {[%clk 0:00:08.2]} 33. g3
{[%clk 0:01:01.8]} 33... g5 {[%clk 0:00:08.3]} 34. Ke2 {[%clk 0:00:58.9]} 34...
f4 {[%clk 0:00:08.5]} 35. gxf4 {[%clk 0:00:58.2]} 35... gxf4 {[%clk 0:00:08.6]}
36. Bc1 {[%clk 0:00:56]} 36... Rb6 {[%clk 0:00:09]} 37. f3 {[%clk 0:00:54.5]}
37... Rg6 {[%clk 0:00:08.1]} 38. Kf2 {[%clk 0:00:53.2]} 38... Bf6 {[%clk
0:00:08.2]} 39. Rg1 {[%clk 0:00:50.8]} 39... Bh4+ {[%clk 0:00:08.5]} 40. Kf1
{[%clk 0:00:50.7]} 40... Rd6 {[%clk 0:00:08.4]} 41. Ke2 {[%clk 0:00:48.4]} 41...
Bg3 {[%clk 0:00:08.9]} 42. Rd1 {[%clk 0:00:47]} 42... Rg6 {[%clk 0:00:09.3]} 43.
Rg1 {[%clk 0:00:45.3]} 43... a5 {[%clk 0:00:07.4]} 44. Bd2 {[%clk 0:00:44.6]}
44... a4 {[%clk 0:00:07.6]} 45. b3 {[%clk 0:00:43.6]} 45... axb3 {[%clk
0:00:07.1]} 46. axb3 {[%clk 0:00:43.6]} 46... Ra6 {[%clk 0:00:08]} 47. Rd1
{[%clk 0:00:34]} 47... Ke6 {[%clk 0:00:07.1]} 48. c4 {[%clk 0:00:30.5]} 48...
Ra3 {[%clk 0:00:07]} 49. Rb1 {[%clk 0:00:29.2]} 49... Ra2 {[%clk 0:00:06.9]} 50.
Kd3 {[%clk 0:00:29]} 50... Kf5 {[%clk 0:00:04]} 51. b4 {[%clk 0:00:27.3]} 51...
Ra3+ {[%clk 0:00:04.2]} 52. Bc3 {[%clk 0:00:23.9]} 52... Bf2 {[%clk 0:00:04.5]}
53. b5 {[%clk 0:00:20.5]} 53... Bd4 {[%clk 0:00:04.6]} 54. Rc1 {[%clk
0:00:20.2]} 54... Rb3 {[%clk 0:00:02.9]} 55. Rc2 {[%clk 0:00:18.8]} 55... Rb1
{[%clk 0:00:02.9]} 56. Kd2 {[%clk 0:00:17.7]} 56... Be3+ {[%clk 0:00:03.3]} 57.
Kd3 {[%clk 0:00:16.7]} 57... Rh1 {[%clk 0:00:04.2]} 58. Bd2 {[%clk 0:00:12.2]}
58... Rxh3 {[%clk 0:00:04.2]} 59. Bxe3 {[%clk 0:00:11.4]} 59... Rxf3 {[%clk
0:00:05.1]} 60. Re2 {[%clk 0:00:09.6]} 60... e4+ {[%clk 0:00:05.5]} 61. Kd4
{[%clk 0:00:08.5]} 61... fxe3 {[%clk 0:00:05.6]} 62. b6 {[%clk 0:00:07.1]} 62...
Rf2 {[%clk 0:00:05.3]} 63. Rxe3 {[%clk 0:00:06.7]} 63... Rd2+ {[%clk 0:00:05.2]}
64. Kc5 {[%clk 0:00:06.2]} 64... Kf4 {[%clk 0:00:04.8]} 65. Rh3 {[%clk 0:00:05]}
65... e3 {[%clk 0:00:04.5]} 66. Rxh6 {[%clk 0:00:04.9]} 66... e2 {[%clk
0:00:05]} 67. Re6 {[%clk 0:00:04.8]} 67... Kf3 {[%clk 0:00:04.9]} 68. b7 {[%clk
0:00:04.4]} 68... Rb2 {[%clk 0:00:05.2]} 69. Rxe2 {[%clk 0:00:03.7]} 69... Kxe2
{[%clk 0:00:05.3]} 70. Kc6 {[%clk 0:00:03.4]} 70... Kd3 {[%clk 0:00:05.5]} 71.
c5 {[%clk 0:00:03]} 71... Kd4 {[%clk 0:00:06]} 72. Kc7 {[%clk 0:00:03.3]} 72...
Kxc5 {[%clk 0:00:06.2]} 73. b8=Q {[%clk 0:00:03.4]} 73... Rxb8 {[%clk
0:00:06.2]} 74. Kxb8 {[%clk 0:00:03.8]} 1/2-1/2

[Event "Early-Titled-Tuesday-Blitz-November-28-2023"]
[Site "Chess.com"]
[Date "2023.11.28"]
[Round "2"]
[White "mbachez"]
[Black "seopie"]
[Result "0-1"]
[WhiteElo "2568"]
[BlackElo "2869"]
[TimeControl "180+1"]
[EndTime "8:19:42 PST"]
[Termination "seopie won by resignation"]

1. e4 {[%clk 0:03:00.9]} 1... e5 {[%clk 0:03:00.2]} 2. Nf3 {[%clk 0:02:59]} 2...
Nc6 {[%clk 0:03:00.3]} 3. Bb5 {[%clk 0:02:57.8]} 3... a6 {[%clk 0:03:00]} 4. Ba4
{[%clk 0:02:52.8]} 4... b5 {[%clk 0:02:59.8]} 5. Bb3 {[%clk 0:02:52.6]} 5... Na5
{[%clk 0:03:00.7]} 6. O-O {[%clk 0:02:49.6]} 6... d6 {[%clk 0:02:58.4]} 7. d4
{[%clk 0:02:48.3]} 7... exd4 {[%clk 0:02:52.2]} 8. Nxd4 {[%clk 0:02:41.6]} 8...
Bb7 {[%clk 0:02:45.2]} 9. Bd2 {[%clk 0:02:20.8]} 9... Nxb3 {[%clk 0:02:41.9]}
10. Nxb3 {[%clk 0:02:10.7]} 10... Nf6 {[%clk 0:02:41.5]} 11. Re1 {[%clk
0:02:09.5]} 11... Be7 {[%clk 0:02:40.8]} 12. Nc3 {[%clk 0:02:04.9]} 12... Rb8
{[%clk 0:02:27.4]} 13. Qf3 {[%clk 0:01:55.5]} 13... O-O {[%clk 0:02:27]} 14. a4
{[%clk 0:01:48.5]} 14... b4 {[%clk 0:02:23.8]} 15. Nd5 {[%clk 0:01:48.3]} 15...
Nxd5 {[%clk 0:02:22.7]} 16. exd5 {[%clk 0:01:48.4]} 16... Bf6 {[%clk 0:02:21.5]}
17. Rab1 {[%clk 0:01:35.2]} 17... Ba8 {[%clk 0:02:17.4]} 18. Na5 {[%clk
0:01:29.2]} 18... c5 {[%clk 0:02:09.6]} 19. Nc4 {[%clk 0:01:26.2]} 19... Qd7
{[%clk 0:01:56.8]} 20. b3 {[%clk 0:01:14.8]} 20... Bd8 {[%clk 0:01:32.6]} 21.
Bf4 {[%clk 0:01:11.7]} 21... Bc7 {[%clk 0:01:32.6]} 22. Red1 {[%clk 0:00:55.9]}
22... Rfe8 {[%clk 0:01:30.1]} 23. Qg3 {[%clk 0:00:55.4]} 23... Rbd8 {[%clk
0:01:30.2]} 24. Rd2 {[%clk 0:00:47.9]} 24... Re4 {[%clk 0:01:27.9]} 25. h3
{[%clk 0:00:44.1]} 25... Bb7 {[%clk 0:01:26.8]} 26. Rbd1 {[%clk 0:00:32.4]}
26... a5 {[%clk 0:01:15.2]} 27. Bg5 {[%clk 0:00:30.9]} 27... Rde8 {[%clk
0:01:12.7]} 28. Bf6 {[%clk 0:00:30.3]} 28... g6 {[%clk 0:01:09.5]} 29. f3 {[%clk
0:00:19.5]} 29... Re2 {[%clk 0:00:50.2]} 30. Qf4 {[%clk 0:00:18.8]} 30... Qf5
{[%clk 0:00:46.6]} 31. Qxf5 {[%clk 0:00:18.9]} 31... gxf5 {[%clk 0:00:46.8]} 32.
Kf1 {[%clk 0:00:19.4]} 32... Rxd2 {[%clk 0:00:46.6]} 33. Rxd2 {[%clk 0:00:19.3]}
33... Ba6 {[%clk 0:00:39.8]} 34. Kf2 {[%clk 0:00:18.5]} 34... Bxc4 {[%clk
0:00:37]} 35. bxc4 {[%clk 0:00:18.6]} 35... Bd8 {[%clk 0:00:37.7]} 36. Bxd8
{[%clk 0:00:17.6]} 36... Rxd8 {[%clk 0:00:37.8]} 37. Re2 {[%clk 0:00:18.2]}
37... Kf8 {[%clk 0:00:34.8]} 38. Kg3 {[%clk 0:00:18.5]} 38... Rb8 {[%clk
0:00:35.1]} 39. Re3 {[%clk 0:00:18.5]} 39... Kg7 {[%clk 0:00:35.1]} 40. Kf4
{[%clk 0:00:18.9]} 40... Kf6 {[%clk 0:00:35.5]} 41. h4 {[%clk 0:00:19.2]} 41...
h5 {[%clk 0:00:32]} 42. g3 {[%clk 0:00:18.9]} 42... Rb7 {[%clk 0:00:26]} 43. Rb3
{[%clk 0:00:18.9]} 43... Re7 {[%clk 0:00:25]} 44. c3 {[%clk 0:00:18.6]} 44...
Re1 {[%clk 0:00:21.9]} 45. cxb4 {[%clk 0:00:18.7]} 45... axb4 {[%clk 0:00:20.6]}
46. g4 {[%clk 0:00:17.8]} 46... fxg4 {[%clk 0:00:20.3]} 47. fxg4 {[%clk
0:00:17.6]} 47... hxg4 {[%clk 0:00:18.7]} 48. Kxg4 {[%clk 0:00:17.5]} 48... Rc1
{[%clk 0:00:18.9]} 49. Rf3+ {[%clk 0:00:17]} 49... Kg7 {[%clk 0:00:19.3]} 50.
Rf4 {[%clk 0:00:17.3]} 50... b3 {[%clk 0:00:19.5]} 51. Rf2 {[%clk 0:00:16]}
51... Rxc4+ {[%clk 0:00:19.4]} 52. Kg5 {[%clk 0:00:15.5]} 52... Rxa4 {[%clk
0:00:16.3]} 53. h5 {[%clk 0:00:14.1]} 53... Rb4 {[%clk 0:00:13.2]} 54. h6+
{[%clk 0:00:14.3]} 54... Kg8 {[%clk 0:00:13.7]} 55. Re2 {[%clk 0:00:13.4]} 55...
b2 {[%clk 0:00:12.8]} 56. Re8+ {[%clk 0:00:13.2]} 56... Kh7 {[%clk 0:00:12.9]}
57. Re7 {[%clk 0:00:11.5]} 57... b1=Q {[%clk 0:00:10.3]} 58. Rxf7+ {[%clk
0:00:11.5]} 58... Kh8 {[%clk 0:00:10.2]} 59. Rf8+ {[%clk 0:00:11.3]} 59... Kh7
{[%clk 0:00:10.6]} 60. Rf7+ {[%clk 0:00:11.7]} 60... Kg8 {[%clk 0:00:11.3]} 61.
Rg7+ {[%clk 0:00:12]} 61... Kf8 {[%clk 0:00:11.6]} 62. Kf6 {[%clk 0:00:12.4]}
62... Rf4+ {[%clk 0:00:10.2]} 63. Ke6 {[%clk 0:00:12.7]} 63... Qf5+ {[%clk
0:00:10.1]} 64. Kxd6 {[%clk 0:00:13.1]} 64... c4 {[%clk 0:00:07.6]} 65. Rc7
{[%clk 0:00:10.9]} 65... Qf6+ {[%clk 0:00:07.3]} 66. Kc5 {[%clk 0:00:10.3]}
66... Qxh6 {[%clk 0:00:07.3]} 67. Kb5 {[%clk 0:00:09.8]} 67... Qd6 {[%clk
0:00:06.7]} 68. Rc8+ {[%clk 0:00:09.8]} 68... Ke7 {[%clk 0:00:06.8]} 69. Ra8
{[%clk 0:00:09.4]} 69... Qxd5+ {[%clk 0:00:06.9]} 70. Kb6 {[%clk 0:00:09.8]}
70... Qxa8 {[%clk 0:00:06.9]} 71. Kc7 {[%clk 0:00:10.4]} 71... Qd8+ {[%clk
0:00:06.9]} 72. Kb7 {[%clk 0:00:10.1]} 72... c3 {[%clk 0:00:06.6]} 73. Kc6
{[%clk 0:00:10.8]} 73... Rc4+ {[%clk 0:00:06.4]} 74. Kb5 {[%clk 0:00:11.6]}
74... Qd5+ {[%clk 0:00:06.5]} 75. Kb6 {[%clk 0:00:11.4]} 75... Rb4+ {[%clk
0:00:06.9]} 76. Ka6 {[%clk 0:00:10.7]} 76... Qb5+ {[%clk 0:00:06.9]} 0-1

[Event "Early-Titled-Tuesday-Blitz-November-28-2023"]
[Site "Chess.com"]
[Date "2023.11.28"]
[Round "2"]
[White "Eagle_2019"]
[Black "KVAIDAN"]
[Result "1/2-1/2"]
[WhiteElo "2683"]
[BlackElo "2355"]
[TimeControl "180+1"]
[EndTime "8:19:46 PST"]
[Termination "Game drawn - insufficient material"]

1. d4 {[%clk 0:03:00.9]} 1... e6 {[%clk 0:02:59.1]} 2. Nf3 {[%clk 0:03:01]} 2...
f5 {[%clk 0:02:59.3]} 3. g3 {[%clk 0:02:59.7]} 3... Nf6 {[%clk 0:02:59.7]} 4.
Bg2 {[%clk 0:02:59.8]} 4... Be7 {[%clk 0:03:00.2]} 5. O-O {[%clk 0:03:00]} 5...
O-O {[%clk 0:03:00.9]} 6. c4 {[%clk 0:03:00.4]} 6... d6 {[%clk 0:03:01.5]} 7.
Nc3 {[%clk 0:03:00.3]} 7... a5 {[%clk 0:03:02.2]} 8. Re1 {[%clk 0:02:58.8]} 8...
Ne4 {[%clk 0:03:02]} 9. Qc2 {[%clk 0:02:56.3]} 9... Nxc3 {[%clk 0:03:02.1]} 10.
bxc3 {[%clk 0:02:56.4]} 10... Nc6 {[%clk 0:02:56.3]} 11. e4 {[%clk 0:02:54.1]}
11... e5 {[%clk 0:02:53.1]} 12. exf5 {[%clk 0:02:44.7]} 12... Bxf5 {[%clk
0:02:52.6]} 13. Qb3 {[%clk 0:02:44.5]} 13... exd4 {[%clk 0:02:15.4]} 14. Nxd4
{[%clk 0:02:42.1]} 14... Nxd4 {[%clk 0:02:09.2]} 15. cxd4 {[%clk 0:02:43]} 15...
Bf6 {[%clk 0:02:05.9]} 16. Qxb7 {[%clk 0:02:37.3]} 16... c5 {[%clk 0:01:53.5]}
17. Qd5+ {[%clk 0:02:21.7]} 17... Kh8 {[%clk 0:01:53.2]} 18. Be3 {[%clk
0:01:54.3]} 18... Bg6 {[%clk 0:01:37.7]} 19. Qxa8 {[%clk 0:01:50.2]} 19... Qxa8
{[%clk 0:01:29.5]} 20. Bxa8 {[%clk 0:01:51.1]} 20... Rxa8 {[%clk 0:01:29.6]} 21.
Rad1 {[%clk 0:01:50.5]} 21... Bh5 {[%clk 0:01:18.7]} 22. dxc5 {[%clk 0:01:44.3]}
22... Bxd1 {[%clk 0:01:12.5]} 23. Rxd1 {[%clk 0:01:45.2]} 23... dxc5 {[%clk
0:01:12.5]} 24. Bxc5 {[%clk 0:01:43.4]} 24... Rc8 {[%clk 0:01:11.2]} 25. Rd5
{[%clk 0:01:41]} 25... a4 {[%clk 0:01:11.4]} 26. Kg2 {[%clk 0:01:22.3]} 26...
Kg8 {[%clk 0:01:09.5]} 27. Kf3 {[%clk 0:01:15.5]} 27... Kf7 {[%clk 0:01:09.3]}
28. Ke2 {[%clk 0:01:04.8]} 28... Ke6 {[%clk 0:01:03.2]} 29. Kd3 {[%clk
0:00:58.5]} 29... Rb8 {[%clk 0:01:02.2]} 30. Rd6+ {[%clk 0:00:57.3]} 30... Ke5
{[%clk 0:01:02.1]} 31. Rb6 {[%clk 0:00:52.8]} 31... Rd8+ {[%clk 0:00:59.7]} 32.
Ke2 {[%clk 0:00:49]} 32... Rc8 {[%clk 0:00:59.4]} 33. Rb5 {[%clk 0:00:48.9]}
33... Ke6 {[%clk 0:00:55]} 34. Ra5 {[%clk 0:00:46.9]} 34... h6 {[%clk
0:00:50.4]} 35. Kd3 {[%clk 0:00:44.8]} 35... Rd8+ {[%clk 0:00:48]} 36. Kc2
{[%clk 0:00:44.3]} 36... Rc8 {[%clk 0:00:46.9]} 37. Ra6+ {[%clk 0:00:42.3]}
37... Kf5 {[%clk 0:00:45.9]} 38. Be3 {[%clk 0:00:34.7]} 38... Rxc4+ {[%clk
0:00:44.6]} 39. Kd3 {[%clk 0:00:34.7]} 39... Rc3+ {[%clk 0:00:39.6]} 40. Ke2
{[%clk 0:00:29.3]} 40... Ra3 {[%clk 0:00:39.3]} 41. Bc5 {[%clk 0:00:22.9]} 41...
Rxa2+ {[%clk 0:00:37.7]} 42. Kf3 {[%clk 0:00:21.5]} 42... Rc2 {[%clk 0:00:33.8]}
43. Ra5 {[%clk 0:00:17.3]} 43... Kg6 {[%clk 0:00:32.5]} 44. Bb4 {[%clk
0:00:12.6]} 44... Ra2 {[%clk 0:00:28.2]} 45. h4 {[%clk 0:00:10.9]} 45... Bd4
{[%clk 0:00:27.1]} 46. h5+ {[%clk 0:00:09.2]} 46... Kh7 {[%clk 0:00:26.4]} 47.
Be1 {[%clk 0:00:08.6]} 47... Bb6 {[%clk 0:00:20.4]} 48. Ra6 {[%clk 0:00:07.3]}
48... Bd4 {[%clk 0:00:20.4]} 49. Rd6 {[%clk 0:00:06.7]} 49... Be5 {[%clk
0:00:20.1]} 50. Rd5 {[%clk 0:00:05.7]} 50... Bf6 {[%clk 0:00:20.2]} 51. Bb4
{[%clk 0:00:04.2]} 51... Rb2 {[%clk 0:00:19.7]} 52. Bf8 {[%clk 0:00:02.4]} 52...
Rb3+ {[%clk 0:00:19.7]} 53. Kg2 {[%clk 0:00:02.8]} 53... a3 {[%clk 0:00:19.5]}
54. Ra5 {[%clk 0:00:03.1]} 54... Bb2 {[%clk 0:00:20.1]} 55. Ra7 {[%clk
0:00:03.2]} 55... Kg8 {[%clk 0:00:19.2]} 56. Bc5 {[%clk 0:00:03.4]} 56... Rd3
{[%clk 0:00:19.1]} 57. Kf1 {[%clk 0:00:03.1]} 57... Rc3 {[%clk 0:00:18.9]} 58.
Bb4 {[%clk 0:00:02.5]} 58... Rb3 {[%clk 0:00:18.7]} 59. Bc5 {[%clk 0:00:02.6]}
59... Rc3 {[%clk 0:00:15.1]} 60. Bd6 {[%clk 0:00:02.9]} 60... Rd3 {[%clk
0:00:14.3]} 61. Bb4 {[%clk 0:00:03.1]} 61... Rf3 {[%clk 0:00:12.1]} 62. Ke2
{[%clk 0:00:03.2]} 62... Rxf2+ {[%clk 0:00:11.5]} 63. Kxf2 {[%clk 0:00:02.6]}
63... Bd4+ {[%clk 0:00:12.2]} 64. Kf3 {[%clk 0:00:03.1]} 64... Bxa7 {[%clk
0:00:12.8]} 65. Bxa3 {[%clk 0:00:03.4]} 65... Bd4 {[%clk 0:00:13]} 66. Ke4
{[%clk 0:00:03.5]} 66... Bf2 {[%clk 0:00:12.4]} 67. g4 {[%clk 0:00:03.9]} 67...
Kf7 {[%clk 0:00:12.7]} 68. Kf5 {[%clk 0:00:04.2]} 68... Bh4 {[%clk 0:00:13.2]}
69. Bb2 {[%clk 0:00:04.4]} 69... Bg5 {[%clk 0:00:13]} 70. Bc3 {[%clk 0:00:04.6]}
70... Bh4 {[%clk 0:00:13.4]} 71. Bd4 {[%clk 0:00:04.9]} 71... Bg5 {[%clk
0:00:13.8]} 72. Be5 {[%clk 0:00:05.2]} 72... Bh4 {[%clk 0:00:14.1]} 73. Bf4
{[%clk 0:00:05.5]} 73... Be1 {[%clk 0:00:14.1]} 74. Ke4 {[%clk 0:00:05.3]} 74...
Bc3 {[%clk 0:00:14]} 75. Be3 {[%clk 0:00:05.1]} 75... Bf6 {[%clk 0:00:12]} 76.
Kf5 {[%clk 0:00:05.3]} 76... Be7 {[%clk 0:00:12.5]} 77. Bd4 {[%clk 0:00:05.4]}
77... Bd8 {[%clk 0:00:13]} 78. Be5 {[%clk 0:00:05.5]} 78... Be7 {[%clk
0:00:13.4]} 79. Bf4 {[%clk 0:00:05.6]} 79... Bf6 {[%clk 0:00:13.6]} 80. g5
{[%clk 0:00:05.1]} 80... hxg5 {[%clk 0:00:13.1]} 81. Bxg5 {[%clk 0:00:06]} 81...
Bd4 {[%clk 0:00:13.3]} 82. Bf4 {[%clk 0:00:06.1]} 82... Bb2 {[%clk 0:00:13.7]}
83. h6 {[%clk 0:00:06.4]} 83... gxh6 {[%clk 0:00:13.2]} 84. Bxh6 {[%clk
0:00:07.3]} 1/2-1/2

[Event "Early-Titled-Tuesday-Blitz-November-28-2023"]
[Site "Chess.com"]
[Date "2023.11.28"]
[Round "2"]
[White "RobertoJBM"]
[Black "JuniorJumper"]
[Result "1/2-1/2"]
[WhiteElo "2827"]
[BlackElo "2554"]
[TimeControl "180+1"]
[EndTime "8:19:52 PST"]
[Termination "Game drawn by stalemate"]

1. d4 {[%clk 0:03:00.9]} 1... Nf6 {[%clk 0:02:42.9]} 2. Nf3 {[%clk 0:03:00.4]}
2... e6 {[%clk 0:02:43.4]} 3. e3 {[%clk 0:03:01]} 3... b6 {[%clk 0:02:43.8]} 4.
Bd3 {[%clk 0:03:01.6]} 4... Bb7 {[%clk 0:02:44.3]} 5. O-O {[%clk 0:03:02.3]}
5... Be7 {[%clk 0:02:44.6]} 6. Qe2 {[%clk 0:03:02.6]} 6... d5 {[%clk 0:02:44.2]}
7. c3 {[%clk 0:03:03.1]} 7... O-O {[%clk 0:02:44.6]} 8. Nbd2 {[%clk 0:03:03.6]}
8... c5 {[%clk 0:02:44.9]} 9. e4 {[%clk 0:03:03.3]} 9... dxe4 {[%clk 0:02:44.3]}
10. Nxe4 {[%clk 0:03:03]} 10... Nbd7 {[%clk 0:02:43.3]} 11. Rd1 {[%clk
0:03:02.7]} 11... Nxe4 {[%clk 0:02:37.6]} 12. Bxe4 {[%clk 0:03:02.8]} 12... Bxe4
{[%clk 0:02:38.2]} 13. Qxe4 {[%clk 0:03:03.7]} 13... Nf6 {[%clk 0:02:38.8]} 14.
Qe2 {[%clk 0:03:02.8]} 14... Qc8 {[%clk 0:02:37]} 15. d5 {[%clk 0:02:53.8]}
15... Nxd5 {[%clk 0:02:03.6]} 16. Rxd5 {[%clk 0:02:53.1]} 16... exd5 {[%clk
0:02:04.5]} 17. Qxe7 {[%clk 0:02:52.3]} 17... Re8 {[%clk 0:02:05.4]} 18. Qg5
{[%clk 0:02:47.3]} 18... Qe6 {[%clk 0:01:34.1]} 19. Be3 {[%clk 0:02:42.3]} 19...
h6 {[%clk 0:01:33.2]} 20. Qf4 {[%clk 0:02:35]} 20... Rad8 {[%clk 0:01:32.6]} 21.
h3 {[%clk 0:02:32.6]} 21... Qc6 {[%clk 0:00:55.6]} 22. Rd1 {[%clk 0:02:24]}
22... Qb5 {[%clk 0:00:42.2]} 23. Rd2 {[%clk 0:02:09.7]} 23... Re4 {[%clk
0:00:20]} 24. Qf5 {[%clk 0:01:42.8]} 24... Qd7 {[%clk 0:00:15.1]} 25. Qxe4
{[%clk 0:01:22.3]} 25... dxe4 {[%clk 0:00:16]} 26. Rxd7 {[%clk 0:01:23]} 26...
Rxd7 {[%clk 0:00:16.9]} 27. Nd2 {[%clk 0:01:23.6]} 27... f5 {[%clk 0:00:15.1]}
28. g4 {[%clk 0:01:19.9]} 28... g6 {[%clk 0:00:04.2]} 29. Kg2 {[%clk 0:01:12.1]}
29... Kg7 {[%clk 0:00:03]} 30. gxf5 {[%clk 0:01:10.9]} 30... gxf5 {[%clk
0:00:03.9]} 31. f3 {[%clk 0:01:10.2]} 31... exf3+ {[%clk 0:00:02.8]} 32. Kxf3
{[%clk 0:01:09.1]} 32... h5 {[%clk 0:00:02.9]} 33. h4 {[%clk 0:01:01]} 33... Kf6
{[%clk 0:00:03]} 34. Bg5+ {[%clk 0:01:00.4]} 34... Ke6 {[%clk 0:00:02.4]} 35.
Ke3 {[%clk 0:00:59.4]} 35... b5 {[%clk 0:00:02.6]} 36. Nb3 {[%clk 0:00:54.9]}
36... Rd5 {[%clk 0:00:03]} 37. Nd2 {[%clk 0:00:51.3]} 37... c4 {[%clk
0:00:02.4]} 38. Nf3 {[%clk 0:00:48.9]} 38... Rd3+ {[%clk 0:00:02.5]} 39. Ke2
{[%clk 0:00:48.9]} 39... Kd5 {[%clk 0:00:01.7]} 40. Bd2 {[%clk 0:00:22]} 40...
Ke4 {[%clk 0:00:02]} 41. Ng5+ {[%clk 0:00:22.7]} 41... Kd5 {[%clk 0:00:02.2]}
42. b3 {[%clk 0:00:23.5]} 42... a5 {[%clk 0:00:02.1]} 43. bxc4+ {[%clk
0:00:21.2]} 43... bxc4 {[%clk 0:00:03]} 44. a4 {[%clk 0:00:20.6]} 44... Rg3
{[%clk 0:00:02.6]} 45. Kf2 {[%clk 0:00:19.5]} 45... Rd3 {[%clk 0:00:03]} 46. Be1
{[%clk 0:00:18.5]} 46... Kc6 {[%clk 0:00:02.3]} 47. Ke2 {[%clk 0:00:18]} 47...
Kd5 {[%clk 0:00:02.4]} 48. Nf3 {[%clk 0:00:17]} 48... Ke6 {[%clk 0:00:01.8]} 49.
Nd4+ {[%clk 0:00:15.6]} 49... Kd5 {[%clk 0:00:01.7]} 50. Nc2 {[%clk 0:00:15.2]}
50... Rh3 {[%clk 0:00:01.4]} 51. Ne3+ {[%clk 0:00:15.1]} 51... Ke4 {[%clk
0:00:02]} 52. Nxc4 {[%clk 0:00:15.1]} 52... f4 {[%clk 0:00:02.4]} 53. Nd2+
{[%clk 0:00:14.6]} 53... Kf5 {[%clk 0:00:02.4]} 54. Nf3 {[%clk 0:00:15.5]} 54...
Kg4 {[%clk 0:00:03]} 55. Ne5+ {[%clk 0:00:15.3]} 55... Kf5 {[%clk 0:00:03.2]}
56. Nd3 {[%clk 0:00:15.6]} 56... Rh2+ {[%clk 0:00:03.1]} 57. Bf2 {[%clk
0:00:15.2]} 57... Ke4 {[%clk 0:00:03]} 58. Nc5+ {[%clk 0:00:14.9]} 58... Kd5
{[%clk 0:00:03.6]} 59. Nb3 {[%clk 0:00:14.4]} 59... Ke4 {[%clk 0:00:04.1]} 60.
Nd2+ {[%clk 0:00:14.2]} 60... Kf5 {[%clk 0:00:04.3]} 61. c4 {[%clk 0:00:13.8]}
61... Rh3 {[%clk 0:00:03]} 62. Nf3 {[%clk 0:00:14.2]} 62... Kg4 {[%clk
0:00:03.1]} 63. Ne5+ {[%clk 0:00:14.1]} 63... Kf5 {[%clk 0:00:03.8]} 64. Nd3
{[%clk 0:00:14.7]} 64... Ke4 {[%clk 0:00:04.3]} 65. Nc5+ {[%clk 0:00:15]} 65...
Kf5 {[%clk 0:00:04.9]} 66. Nb7 {[%clk 0:00:14.8]} 66... Ra3 {[%clk 0:00:05.1]}
67. Nxa5 {[%clk 0:00:14.8]} 67... Rxa4 {[%clk 0:00:05.7]} 68. Nb3 {[%clk
0:00:15.2]} 68... Rxc4 {[%clk 0:00:05.8]} 69. Nd2 {[%clk 0:00:15.6]} 69... Ra4
{[%clk 0:00:03.5]} 70. Kf3 {[%clk 0:00:14]} 70... Ra3+ {[%clk 0:00:03.5]} 71.
Kg2 {[%clk 0:00:14.3]} 71... Kg4 {[%clk 0:00:04.1]} 72. Ne4 {[%clk 0:00:14.2]}
72... f3+ {[%clk 0:00:03.9]} 73. Kg1 {[%clk 0:00:13.5]} 73... Ra1+ {[%clk
0:00:04.1]} 74. Kh2 {[%clk 0:00:13.9]} 74... Ra2 {[%clk 0:00:05]} 75. Kg1 {[%clk
0:00:11.9]} 75... Kh3 {[%clk 0:00:05.6]} 76. Ng5+ {[%clk 0:00:10.8]} 76... Kg4
{[%clk 0:00:06.3]} 77. Nf7 {[%clk 0:00:10]} 77... Rxf2 {[%clk 0:00:04.3]} 78.
Kxf2 {[%clk 0:00:09.5]} 78... Kxh4 {[%clk 0:00:05.2]} 79. Kxf3 {[%clk
0:00:10.4]} 79... Kh3 {[%clk 0:00:05.4]} 80. Ng5+ {[%clk 0:00:10.3]} 80... Kh4
{[%clk 0:00:06]} 81. Ne4 {[%clk 0:00:11.2]} 81... Kh3 {[%clk 0:00:05.9]} 82.
Nf2+ {[%clk 0:00:12.1]} 82... Kh4 {[%clk 0:00:06.3]} 83. Kf4 {[%clk 0:00:11.1]}
1/2-1/2